[Event "*** Titled Tuesday Blitz"]
[Site "Chess.com"]
[Date "2019.02.05"]
[Round "9"]
[White "charly871"]
[Black "j2806"]
[Result "0-1"]
[WhiteElo "1839"]
[BlackElo "1813"]
[TimeControl "180+2"]
[EndTime "15:14:35 PST"]
[Termination "j2806 won by checkmate"]

1. d4 {[%clk 0:02:30.6]} 1... Nf6 {[%clk 0:02:59.3]} 2. c4 {[%clk 0:02:22.7]}
2... e6 {[%clk 0:02:58.6]} 3. Nf3 {[%clk 0:02:19.5]} 3... d5 {[%clk 0:02:58.1]}
4. g3 {[%clk 0:02:18.1]} 4... Be7 {[%clk 0:02:55.3]} 5. Bg2 {[%clk 0:02:18.4]}
5... b6 {[%clk 0:02:52.4]} 6. Nbd2 {[%clk 0:02:18.4]} 6... Bb7 {[%clk
0:02:53.1]} 7. O-O {[%clk 0:02:19.3]} 7... O-O {[%clk 0:02:52.7]} 8. Qc2 {[%clk
0:02:19.8]} 8... c5 {[%clk 0:02:52.9]} 9. b3 {[%clk 0:02:20]} 9... Nc6 {[%clk
0:02:52.6]} 10. Bb2 {[%clk 0:02:20.3]} 10... Rc8 {[%clk 0:02:49.3]} 11. Rad1
{[%clk 0:02:18.4]} 11... dxc4 {[%clk 0:02:39]} 12. Nxc4 {[%clk 0:02:18.3]} 12...
cxd4 {[%clk 0:02:28.4]} 13. Nxd4 {[%clk 0:02:10.9]} 13... Qc7 {[%clk 0:02:23.6]}
14. Nb5 {[%clk 0:02:10.3]} 14... Qb8 {[%clk 0:02:21.7]} 15. Be5 {[%clk
0:02:10.1]} 15... Nxe5 {[%clk 0:02:18.6]} 16. Bxb7 {[%clk 0:02:06.6]} 16... Qxb7
{[%clk 0:02:15.5]} 17. Qb2 {[%clk 0:02:02.9]} 17... Nxc4 {[%clk 0:02:12.9]} 18.
bxc4 {[%clk 0:02:03.9]} 18... Rxc4 {[%clk 0:02:11.9]} 19. Qb3 {[%clk 0:01:59.3]}
19... Rb4 {[%clk 0:02:07.1]} 20. Qd3 {[%clk 0:01:59.1]} 20... Nd5 {[%clk
0:01:51.2]} 21. a4 {[%clk 0:01:56.7]} 21... Rc8 {[%clk 0:01:44.7]} 22. e4 {[%clk
0:01:56.6]} 22... Nf6 {[%clk 0:01:39.5]} 23. e5 {[%clk 0:01:49]} 23... Nd5
{[%clk 0:01:38.9]} 24. Nd6 {[%clk 0:01:49.4]} 24... Bxd6 {[%clk 0:01:37.2]} 25.
exd6 {[%clk 0:01:50.6]} 25... Rxa4 {[%clk 0:01:38]} 26. Qb3 {[%clk 0:01:50]}
26... Rac4 {[%clk 0:01:35]} 27. Ra1 {[%clk 0:01:48.6]} 27... R4c6 {[%clk
0:01:33]} 28. Qa3 {[%clk 0:01:47.4]} 28... a5 {[%clk 0:01:31.3]} 29. Rac1 {[%clk
0:01:43.4]} 29... Qd7 {[%clk 0:01:29.7]} 30. Rxc6 {[%clk 0:01:40.1]} 30... Rxc6
{[%clk 0:01:30.1]} 31. Rb1 {[%clk 0:01:30.1]} 31... Qxd6 {[%clk 0:01:19.7]} 32.
Qd3 {[%clk 0:01:29.3]} 32... Qc5 {[%clk 0:01:14.3]} 33. Qa6 {[%clk 0:01:28.9]}
33... Nb4 {[%clk 0:01:11.2]} 34. Qa8+ {[%clk 0:01:27]} 34... Qf8 {[%clk
0:01:10.8]} 35. Qb7 {[%clk 0:01:24.8]} 35... Qc8 {[%clk 0:01:00.3]} 36. Qe7
{[%clk 0:01:21.6]} 36... Rc1+ {[%clk 0:00:54.5]} 37. Rxc1 {[%clk 0:01:21.8]}
37... Qxc1+ {[%clk 0:00:54.6]} 38. Kg2 {[%clk 0:01:22.9]} 38... Qc6+ {[%clk
0:00:53.8]} 39. Kg1 {[%clk 0:01:22.8]} 39... h6 {[%clk 0:00:50.1]} 40. h4 {[%clk
0:01:22.2]} 40... Qc5 {[%clk 0:00:46.2]} 41. Qe8+ {[%clk 0:01:22]} 41... Qf8
{[%clk 0:00:46.5]} 42. Qb5 {[%clk 0:01:21.4]} 42... Qb8 {[%clk 0:00:44.7]} 43.
h5 {[%clk 0:01:19.6]} 43... Kh7 {[%clk 0:00:43.7]} 44. g4 {[%clk 0:01:14.2]}
44... Qd6 {[%clk 0:00:43.3]} 45. Qe8 {[%clk 0:01:12.9]} 45... Qc7 {[%clk
0:00:38.4]} 46. Qb5 {[%clk 0:01:11.6]} 46... Qc6 {[%clk 0:00:37.6]} 47. Qe5
{[%clk 0:01:09.3]} 47... a4 {[%clk 0:00:36.7]} 48. Qf4 {[%clk 0:01:08.7]} 48...
Nd5 {[%clk 0:00:35.1]} 49. Qxf7 {[%clk 0:01:09.4]} 49... a3 {[%clk 0:00:31.8]}
50. Qg6+ {[%clk 0:01:10.4]} 50... Kh8 {[%clk 0:00:31.3]} 51. g5 {[%clk
0:01:11.6]} 51... a2 {[%clk 0:00:25.4]} 52. gxh6 {[%clk 0:01:10]} 52... a1=Q+
{[%clk 0:00:26.3]} 53. Kg2 {[%clk 0:01:09.8]} 53... gxh6 {[%clk 0:00:25]} 54.
Qxh6+ {[%clk 0:01:08.6]} 54... Kg8 {[%clk 0:00:26.1]} 55. Kh2 {[%clk 0:01:04.9]}
55... Qe5+ {[%clk 0:00:25.8]} 56. f4 {[%clk 0:01:04.5]} 56... Qxf4+ {[%clk
0:00:26]} 57. Qxf4 {[%clk 0:01:04.2]} 57... Nxf4 {[%clk 0:00:27.2]} 58. Kg3
{[%clk 0:01:05.2]} 58... e5 {[%clk 0:00:25.9]} 59. h6 {[%clk 0:01:05]} 59...
Qg2+ {[%clk 0:00:26.7]} 60. Kh4 {[%clk 0:01:05.2]} 60... Qh2+ {[%clk 0:00:19.2]}
61. Kg5 {[%clk 0:01:05.8]} 61... e4 {[%clk 0:00:19.6]} 62. h7+ {[%clk
0:01:05.2]} 62... Kxh7 {[%clk 0:00:19.7]} 63. Kg4 {[%clk 0:01:05.8]} 63... Qg2+
{[%clk 0:00:19.6]} 64. Kf5 {[%clk 0:01:06.6]} 64... e3 {[%clk 0:00:19.5]} 65.
Kf6 {[%clk 0:01:05.6]} 65... e2 {[%clk 0:00:19.8]} 66. Kf7 {[%clk 0:01:05.9]}
66... e1=Q {[%clk 0:00:20.6]} 67. Kf8 {[%clk 0:01:07.1]} 67... Qg5 {[%clk
0:00:18.5]} 68. Kf7 {[%clk 0:01:07.8]} 68... Qe6+ {[%clk 0:00:19.4]} 69. Kf8
{[%clk 0:01:08.1]} 69... Qg7# {[%clk 0:00:21]} 0-1

[Event "*** Titled Tuesday Blitz"]
[Site "Chess.com"]
[Date "2019.02.05"]
[Round "9"]
[White "AlexTriapishko"]
[Black "Didici"]
[Result "1-0"]
[WhiteElo "2775"]
[BlackElo "2589"]
[TimeControl "180+2"]
[EndTime "15:14:39 PST"]
[Termination "AlexTriapishko won by resignation"]

1. d4 {[%clk 0:02:59.3]} 1... f5 {[%clk 0:03:01.1]} 2. Nc3 {[%clk 0:03:00.1]}
2... d5 {[%clk 0:03:01.3]} 3. Bg5 {[%clk 0:03:00.2]} 3... c6 {[%clk 0:03:02.4]}
4. e3 {[%clk 0:02:59.4]} 4... g6 {[%clk 0:03:03.6]} 5. h4 {[%clk 0:02:56.4]}
5... Nh6 {[%clk 0:03:03.1]} 6. Nf3 {[%clk 0:02:51.7]} 6... Nf7 {[%clk
0:03:02.8]} 7. h5 {[%clk 0:02:41.3]} 7... Bg7 {[%clk 0:02:54.1]} 8. Bf4 {[%clk
0:02:16.2]} 8... Nd7 {[%clk 0:02:53.8]} 9. h6 {[%clk 0:01:38.4]} 9... Bf6 {[%clk
0:02:52.8]} 10. g4 {[%clk 0:01:37.5]} 10... fxg4 {[%clk 0:02:31.9]} 11. Nh2
{[%clk 0:01:36.7]} 11... e5 {[%clk 0:02:32.8]} 12. dxe5 {[%clk 0:01:28.1]} 12...
Ndxe5 {[%clk 0:02:34.7]} 13. Be2 {[%clk 0:01:29.7]} 13... O-O {[%clk 0:02:17.2]}
14. Nxg4 {[%clk 0:01:26]} 14... Nxg4 {[%clk 0:02:17.5]} 15. Bxg4 {[%clk
0:01:27.9]} 15... Bxg4 {[%clk 0:02:18.4]} 16. Qxg4 {[%clk 0:01:29.7]} 16... Qa5
{[%clk 0:02:12.5]} 17. O-O {[%clk 0:01:24.3]} 17... Bxc3 {[%clk 0:02:10.2]} 18.
bxc3 {[%clk 0:01:26.2]} 18... Qxc3 {[%clk 0:02:11.6]} 19. a4 {[%clk 0:01:18.1]}
19... b6 {[%clk 0:01:58.7]} 20. a5 {[%clk 0:01:10]} 20... b5 {[%clk 0:01:59.5]}
21. a6 {[%clk 0:01:11.1]} 21... Qf6 {[%clk 0:01:54.6]} 22. Ra3 {[%clk
0:00:57.8]} 22... Rae8 {[%clk 0:01:53.6]} 23. Kg2 {[%clk 0:00:34.1]} 23... Ne5
{[%clk 0:01:39.2]} 24. Qg3 {[%clk 0:00:29.4]} 24... Nc4 {[%clk 0:01:36]} 25. Rd3
{[%clk 0:00:22.2]} 25... Qf5 {[%clk 0:01:26.9]} 26. Kg1 {[%clk 0:00:20.2]} 26...
Kh8 {[%clk 0:01:14.4]} 27. Rb1 {[%clk 0:00:13.4]} 27... g5 {[%clk 0:00:49.6]}
28. Bxg5 {[%clk 0:00:14.1]} 28... Ne5 {[%clk 0:00:49.4]} 29. f4 {[%clk
0:00:03.5]} 29... Nxd3 {[%clk 0:00:47.6]} 30. cxd3 {[%clk 0:00:05]} 30... Rg8
{[%clk 0:00:42.9]} 31. Rc1 {[%clk 0:00:04.9]} 31... Rg6 {[%clk 0:00:42.8]} 32.
e4 {[%clk 0:00:05.9]} 32... dxe4 {[%clk 0:00:41.1]} 33. dxe4 {[%clk 0:00:07.8]}
33... Qxe4 {[%clk 0:00:41.3]} 34. Qc3+ {[%clk 0:00:09.2]} 34... Kg8 {[%clk
0:00:42.1]} 35. Qb3+ {[%clk 0:00:10.2]} 35... Qe6 {[%clk 0:00:40.1]} 36. Qb2
{[%clk 0:00:07.2]} 36... Qe3+ {[%clk 0:00:37.6]} 37. Kh1 {[%clk 0:00:07.9]}
37... Qf3+ {[%clk 0:00:22.8]} 38. Qg2 {[%clk 0:00:08.9]} 38... Qxg2+ {[%clk
0:00:23.4]} 39. Kxg2 {[%clk 0:00:10.8]} 39... Kf7 {[%clk 0:00:22.3]} 40. Kf3
{[%clk 0:00:11.9]} 40... Rge6 {[%clk 0:00:23.2]} 41. Rd1 {[%clk 0:00:12.5]}
41... R6e7 {[%clk 0:00:16.1]} 42. Bxe7 {[%clk 0:00:08.8]} 42... Rxe7 {[%clk
0:00:18]} 43. Rd8 {[%clk 0:00:10]} 43... c5 {[%clk 0:00:19]} 44. Rb8 {[%clk
0:00:10.5]} 44... b4 {[%clk 0:00:20.2]} 45. f5 {[%clk 0:00:11.5]} 45... Kf6
{[%clk 0:00:21.2]} 46. Kf4 {[%clk 0:00:12.1]} 46... Kf7 {[%clk 0:00:20.4]} 47.
Kg5 {[%clk 0:00:11.8]} 47... Rd7 {[%clk 0:00:13]} 48. Rh8 {[%clk 0:00:10.6]}
48... b3 {[%clk 0:00:10.7]} 49. Rxh7+ {[%clk 0:00:11.9]} 49... Kf8 {[%clk
0:00:11.9]} 50. Rxd7 {[%clk 0:00:12.1]} 50... b2 {[%clk 0:00:12.6]} 51. Rb7
{[%clk 0:00:12.9]} 51... c4 {[%clk 0:00:14.5]} 1-0

[Event "*** Titled Tuesday Blitz"]
[Site "Chess.com"]
[Date "2019.02.05"]
[Round "9"]
[White "Witik"]
[Black "fm_magua"]
[Result "1/2-1/2"]
[WhiteElo "2646"]
[BlackElo "2417"]
[TimeControl "180+2"]
[EndTime "15:14:40 PST"]
[Termination "Game drawn by agreement"]

1. d4 {[%clk 0:03:01.9]} 1... Nf6 {[%clk 0:02:59.6]} 2. c4 {[%clk 0:03:02.4]}
2... g6 {[%clk 0:02:58.3]} 3. Nc3 {[%clk 0:03:03.1]} 3... Bg7 {[%clk 0:02:59.2]}
4. e4 {[%clk 0:03:03.8]} 4... d6 {[%clk 0:03:00.6]} 5. f3 {[%clk 0:03:04.3]}
5... O-O {[%clk 0:03:01.7]} 6. Be3 {[%clk 0:03:05.7]} 6... c5 {[%clk 0:03:03.3]}
7. Nge2 {[%clk 0:03:06.4]} 7... b6 {[%clk 0:03:02.4]} 8. d5 {[%clk 0:02:56]}
8... e6 {[%clk 0:02:57.1]} 9. Ng3 {[%clk 0:02:56.4]} 9... exd5 {[%clk
0:02:57.8]} 10. cxd5 {[%clk 0:02:57]} 10... a6 {[%clk 0:02:58.4]} 11. a4 {[%clk
0:02:57.5]} 11... Nbd7 {[%clk 0:02:55.3]} 12. Be2 {[%clk 0:02:57.3]} 12... Ne5
{[%clk 0:02:50.4]} 13. O-O {[%clk 0:02:54.5]} 13... Bd7 {[%clk 0:02:47]} 14. h3
{[%clk 0:02:39.5]} 14... b5 {[%clk 0:02:47.9]} 15. f4 {[%clk 0:02:36.2]} 15...
Nc4 {[%clk 0:02:48.5]} 16. Bxc4 {[%clk 0:02:36.6]} 16... bxc4 {[%clk 0:02:49.6]}
17. e5 {[%clk 0:02:34.4]} 17... Ne8 {[%clk 0:02:48.2]} 18. Nge4 {[%clk
0:02:17.1]} 18... dxe5 {[%clk 0:02:47.2]} 19. Bxc5 {[%clk 0:02:12.2]} 19... f5
{[%clk 0:02:40.3]} 20. Ng5 {[%clk 0:01:42.3]} 20... exf4 {[%clk 0:02:35.2]} 21.
Bxf8 {[%clk 0:01:42.3]} 21... Bxf8 {[%clk 0:02:19.9]} 22. Ne6 {[%clk 0:01:40.9]}
22... Bxe6 {[%clk 0:02:17.8]} 23. dxe6 {[%clk 0:01:41.7]} 23... Qb6+ {[%clk
0:02:18.8]} 24. Kh1 {[%clk 0:01:43.2]} 24... Qxe6 {[%clk 0:02:19.5]} 25. Rxf4
{[%clk 0:01:37.7]} 25... Rb8 {[%clk 0:02:14.8]} 26. Qd5 {[%clk 0:01:30.6]} 26...
Qxd5 {[%clk 0:02:09.3]} 27. Nxd5 {[%clk 0:01:32.5]} 27... Nd6 {[%clk 0:02:06.6]}
28. Nf6+ {[%clk 0:01:03.5]} 28... Kf7 {[%clk 0:02:02]} 29. Nd7 {[%clk
0:01:01.6]} 29... Rxb2 {[%clk 0:02:01.3]} 30. Ne5+ {[%clk 0:00:40.6]} 30... Ke6
{[%clk 0:01:39.9]} 31. Nxc4 {[%clk 0:00:40.8]} 31... Rb4 {[%clk 0:01:22.3]} 32.
Re1+ {[%clk 0:00:41.1]} 32... Kf6 {[%clk 0:01:23.3]} 33. Rc1 {[%clk 0:00:19.7]}
33... Bh6 {[%clk 0:01:16.6]} 34. Rd4 {[%clk 0:00:14.2]} 34... Bxc1 {[%clk
0:01:11.7]} 35. Rxd6+ {[%clk 0:00:14.9]} 35... Ke7 {[%clk 0:01:05.8]} 36. Rc6
{[%clk 0:00:15.6]} 36... Bf4 {[%clk 0:01:03.4]} 37. g4 {[%clk 0:00:14.1]} 37...
fxg4 {[%clk 0:00:55.2]} 38. hxg4 {[%clk 0:00:15.4]} 38... Kd7 {[%clk 0:00:56.5]}
39. Rc5 {[%clk 0:00:13]} 39... Bd6 {[%clk 0:00:42.7]} 40. Nxd6 {[%clk
0:00:12.2]} 40... Kxd6 {[%clk 0:00:43.8]} 41. Ra5 {[%clk 0:00:14.1]} 41... Rxg4
{[%clk 0:00:40.9]} 42. Rxa6+ {[%clk 0:00:15.1]} 42... Kc5 {[%clk 0:00:42.1]} 43.
Ra7 {[%clk 0:00:15.4]} 43... h5 {[%clk 0:00:41.1]} 44. a5 {[%clk 0:00:16]} 44...
Kc6 {[%clk 0:00:34.5]} 45. a6 {[%clk 0:00:14.4]} 45... Kb6 {[%clk 0:00:35.2]}
46. Ra8 {[%clk 0:00:15.5]} 46... g5 {[%clk 0:00:27.6]} 47. Kh2 {[%clk
0:00:12.4]} 47... Ra4 {[%clk 0:00:27.2]} 48. Rg8 {[%clk 0:00:08.5]} 48... Ra5
{[%clk 0:00:26.2]} 49. Rg6+ {[%clk 0:00:09.4]} 49... Ka7 {[%clk 0:00:27]} 50.
Kg3 {[%clk 0:00:09.5]} 50... Ra3+ {[%clk 0:00:23.3]} 51. Kg2 {[%clk 0:00:09.6]}
51... g4 {[%clk 0:00:24.2]} 52. Rg5 {[%clk 0:00:09.4]} 52... Rh3 {[%clk
0:00:24]} 53. Rg6 {[%clk 0:00:10.7]} 53... Rc3 {[%clk 0:00:21.3]} 54. Rg5 {[%clk
0:00:11.1]} 54... Rh3 {[%clk 0:00:22]} 55. Rg6 {[%clk 0:00:12.2]} 55... Ra3
{[%clk 0:00:21.9]} 56. Rg5 {[%clk 0:00:12.8]} 1/2-1/2

[Event "*** Titled Tuesday Blitz"]
[Site "Chess.com"]
[Date "2019.02.05"]
[Round "9"]
[White "Bigfish1995"]
[Black "leoo2001"]
[Result "0-1"]
[WhiteElo "2958"]
[BlackElo "2806"]
[TimeControl "180+2"]
[EndTime "15:14:58 PST"]
[Termination "leoo2001 won on time"]

1. e4 {[%clk 0:03:01.3]} 1... e5 {[%clk 0:02:59.5]} 2. Nf3 {[%clk 0:03:02.2]}
2... Nc6 {[%clk 0:03:00.4]} 3. Bb5 {[%clk 0:03:02.7]} 3... Nf6 {[%clk
0:02:59.8]} 4. d3 {[%clk 0:03:03.1]} 4... Bc5 {[%clk 0:02:59.7]} 5. Nc3 {[%clk
0:03:02.1]} 5... Nd4 {[%clk 0:02:58.8]} 6. Bc4 {[%clk 0:03:01.1]} 6... d6 {[%clk
0:02:58.5]} 7. h3 {[%clk 0:02:57.5]} 7... c6 {[%clk 0:02:57.5]} 8. Be3 {[%clk
0:02:56.3]} 8... b5 {[%clk 0:02:48.7]} 9. Bb3 {[%clk 0:02:56.6]} 9... a5 {[%clk
0:02:49.2]} 10. a4 {[%clk 0:02:50.1]} 10... Nxb3 {[%clk 0:02:48.7]} 11. cxb3
{[%clk 0:02:51.7]} 11... Bxe3 {[%clk 0:02:48.8]} 12. fxe3 {[%clk 0:02:52.8]}
12... b4 {[%clk 0:02:49.6]} 13. Ne2 {[%clk 0:02:53.5]} 13... Qb6 {[%clk
0:02:48.9]} 14. Kf2 {[%clk 0:02:38.4]} 14... O-O {[%clk 0:02:48.1]} 15. Qc2
{[%clk 0:02:38.6]} 15... Nd7 {[%clk 0:02:40.3]} 16. Ng3 {[%clk 0:02:33.8]} 16...
g6 {[%clk 0:02:28.7]} 17. Rac1 {[%clk 0:02:33]} 17... Bb7 {[%clk 0:02:26.9]} 18.
Rhe1 {[%clk 0:02:22.6]} 18... c5 {[%clk 0:02:23.8]} 19. Kg1 {[%clk 0:02:15.5]}
19... Rac8 {[%clk 0:02:20.4]} 20. Nd2 {[%clk 0:01:57.3]} 20... Qc7 {[%clk
0:02:16.7]} 21. Rf1 {[%clk 0:01:54]} 21... Nb6 {[%clk 0:02:14.4]} 22. Nc4 {[%clk
0:01:53]} 22... Nxc4 {[%clk 0:02:13.9]} 23. bxc4 {[%clk 0:01:51.8]} 23... Qe7
{[%clk 0:02:13.9]} 24. Rf2 {[%clk 0:01:50.6]} 24... Bc6 {[%clk 0:02:10.4]} 25.
Kh2 {[%clk 0:01:41.7]} 25... Bd7 {[%clk 0:02:05.7]} 26. Rcf1 {[%clk 0:01:40.4]}
26... f6 {[%clk 0:02:05.4]} 27. b3 {[%clk 0:01:40.2]} 27... Rf7 {[%clk
0:02:06.2]} 28. Qd1 {[%clk 0:01:24.4]} 28... Rcf8 {[%clk 0:02:00.6]} 29. d4
{[%clk 0:01:14.4]} 29... h5 {[%clk 0:01:56.1]} 30. Rd2 {[%clk 0:01:04.6]} 30...
h4 {[%clk 0:01:53]} 31. Ne2 {[%clk 0:01:04.7]} 31... Bc6 {[%clk 0:01:52.1]} 32.
d5 {[%clk 0:01:01.3]} 32... Bd7 {[%clk 0:01:51.5]} 33. Ng1 {[%clk 0:00:59.9]}
33... f5 {[%clk 0:01:51]} 34. exf5 {[%clk 0:00:55.4]} 34... Rxf5 {[%clk
0:01:45.2]} 35. Rxf5 {[%clk 0:00:53.2]} 35... Rxf5 {[%clk 0:01:46.1]} 36. Qe1
{[%clk 0:00:49.2]} 36... e4 {[%clk 0:01:43.7]} 37. Kh1 {[%clk 0:00:48.2]} 37...
Qf6 {[%clk 0:01:42.8]} 38. Rd1 {[%clk 0:00:44.8]} 38... g5 {[%clk 0:01:39.5]}
39. Ne2 {[%clk 0:00:37.2]} 39... Kg7 {[%clk 0:01:33.6]} 40. Kg1 {[%clk
0:00:36.4]} 40... Qb2 {[%clk 0:01:33.3]} 41. Rb1 {[%clk 0:00:35.2]} 41... Qf6
{[%clk 0:01:29.9]} 42. Rd1 {[%clk 0:00:27.1]} 42... Be8 {[%clk 0:01:27.2]} 43.
Rd2 {[%clk 0:00:23.1]} 43... Bh5 {[%clk 0:01:24.9]} 44. g4 {[%clk 0:00:24.4]}
44... Rf3 {[%clk 0:01:20.8]} 45. gxh5 {[%clk 0:00:24.8]} 45... Rxh3 {[%clk
0:01:21.7]} 46. Nf4 {[%clk 0:00:06.7]} 46... gxf4 {[%clk 0:01:16.7]} 47. Rg2+
{[%clk 0:00:07.7]} 47... Rg3 {[%clk 0:01:13.7]} 48. exf4 {[%clk 0:00:08.2]}
48... Qxf4 {[%clk 0:01:13.6]} 49. Rxg3+ {[%clk 0:00:09.2]} 49... hxg3 {[%clk
0:01:13]} 50. Kg2 {[%clk 0:00:10]} 50... Qf3+ {[%clk 0:01:13.1]} 51. Kh3 {[%clk
0:00:10.9]} 51... g2+ {[%clk 0:01:13.2]} 52. Kh2 {[%clk 0:00:12.2]} 52... e3
{[%clk 0:01:12.9]} 53. Qh4 {[%clk 0:00:12.2]} 53... Kh6 {[%clk 0:01:02.9]} 54.
Qe7 {[%clk 0:00:11.7]} 54... g1=Q+ {[%clk 0:00:58.4]} 55. Kxg1 {[%clk
0:00:12.2]} 55... e2 {[%clk 0:00:59.9]} 56. Qxd6+ {[%clk 0:00:12.8]} 56... Kxh5
{[%clk 0:00:57.5]} 57. Qe5+ {[%clk 0:00:13.9]} 57... Kg4 {[%clk 0:00:56.7]} 58.
Qe6+ {[%clk 0:00:15.2]} 58... Kf4 {[%clk 0:00:56]} 59. Qf6+ {[%clk 0:00:10.8]}
59... Ke4 {[%clk 0:00:55.5]} 60. Qh4+ {[%clk 0:00:05.8]} 60... Kd3 {[%clk
0:00:53.9]} 61. Qe1 {[%clk 0:00:06.9]} 61... Qg4+ {[%clk 0:00:52.1]} 62. Kh2
{[%clk 0:00:08.2]} 62... Ke3 {[%clk 0:00:50.2]} 63. d6 {[%clk 0:00:08.6]} 63...
Kf3 {[%clk 0:00:49.2]} 0-1

[Event "*** Titled Tuesday Blitz"]
[Site "Chess.com"]
[Date "2019.02.05"]
[Round "9"]
[White "x-5963514717"]
[Black "ruvat"]
[Result "0-1"]
[WhiteElo "2444"]
[BlackElo "2317"]
[TimeControl "180+2"]
[EndTime "15:14:59 PST"]
[Termination "ruvat won by checkmate"]

1. Nf3 {[%clk 0:03:01.9]} 1... d6 {[%clk 0:02:59.7]} 2. d4 {[%clk 0:03:00]} 2...
g6 {[%clk 0:03:00.3]} 3. g3 {[%clk 0:03:01.3]} 3... Bg7 {[%clk 0:03:01.2]} 4.
Bg2 {[%clk 0:03:03]} 4... Nf6 {[%clk 0:03:02.8]} 5. O-O {[%clk 0:03:04.6]} 5...
O-O {[%clk 0:03:04.4]} 6. Nc3 {[%clk 0:03:06.1]} 6... Nbd7 {[%clk 0:03:04.4]} 7.
e4 {[%clk 0:03:07]} 7... e5 {[%clk 0:03:05.2]} 8. Re1 {[%clk 0:03:08.3]} 8... b6
{[%clk 0:03:04.5]} 9. a4 {[%clk 0:03:06.3]} 9... a6 {[%clk 0:03:04.9]} 10. Bg5
{[%clk 0:03:03.1]} 10... Bb7 {[%clk 0:03:03.8]} 11. Qd2 {[%clk 0:03:02.1]} 11...
Re8 {[%clk 0:03:00.1]} 12. Rad1 {[%clk 0:03:01]} 12... exd4 {[%clk 0:02:25.9]}
13. Nxd4 {[%clk 0:03:01.7]} 13... Qb8 {[%clk 0:02:22]} 14. Qf4 {[%clk 0:02:53]}
14... Nh5 {[%clk 0:02:18.3]} 15. Qd2 {[%clk 0:02:49.2]} 15... Nhf6 {[%clk
0:02:16.3]} 16. Nd5 {[%clk 0:02:39.5]} 16... Nxd5 {[%clk 0:02:01.9]} 17. exd5
{[%clk 0:02:41.4]} 17... Nf6 {[%clk 0:01:51.2]} 18. Nc6 {[%clk 0:02:37.3]} 18...
Bxc6 {[%clk 0:01:47.5]} 19. dxc6 {[%clk 0:02:39.2]} 19... Rxe1+ {[%clk 0:01:41]}
20. Rxe1 {[%clk 0:02:41.1]} 20... Qf8 {[%clk 0:01:41.7]} 21. Bf1 {[%clk
0:02:08]} 21... a5 {[%clk 0:01:39.2]} 22. Bh3 {[%clk 0:01:49.6]} 22... Re8
{[%clk 0:01:36.9]} 23. Bd7 {[%clk 0:01:46.9]} 23... Rxe1+ {[%clk 0:01:29.8]} 24.
Qxe1 {[%clk 0:01:48.8]} 24... h6 {[%clk 0:01:28.9]} 25. Bd2 {[%clk 0:01:42.8]}
25... Qd8 {[%clk 0:01:16.3]} 26. Bh3 {[%clk 0:01:33]} 26... Nh7 {[%clk
0:01:03.4]} 27. Bd7 {[%clk 0:01:20.4]} 27... Nf8 {[%clk 0:00:58.1]} 28. Bh3
{[%clk 0:01:20.5]} 28... Nh7 {[%clk 0:00:58.2]} 29. Bc3 {[%clk 0:01:14.8]} 29...
Bxc3 {[%clk 0:00:52.9]} 30. Qxc3 {[%clk 0:01:15.5]} 30... Qf6 {[%clk 0:00:53.1]}
31. Qe3 {[%clk 0:00:54.8]} 31... Ng5 {[%clk 0:00:40.6]} 32. Bf1 {[%clk
0:00:54.8]} 32... Qe5 {[%clk 0:00:31.1]} 33. Qb3 {[%clk 0:00:42.3]} 33... Kg7
{[%clk 0:00:21]} 34. Bd3 {[%clk 0:00:34.7]} 34... Nf3+ {[%clk 0:00:19.8]} 35.
Kg2 {[%clk 0:00:35.7]} 35... Ne1+ {[%clk 0:00:20]} 36. Kf1 {[%clk 0:00:36.7]}
36... Nxd3 {[%clk 0:00:16.1]} 37. cxd3 {[%clk 0:00:37.8]} 37... h5 {[%clk
0:00:12.4]} 38. h4 {[%clk 0:00:32.7]} 38... Qc5 {[%clk 0:00:11.3]} 39. Qc3+
{[%clk 0:00:29.6]} 39... Qxc3 {[%clk 0:00:11.8]} 40. bxc3 {[%clk 0:00:31.5]}
40... d5 {[%clk 0:00:09.3]} 41. Ke2 {[%clk 0:00:30.9]} 41... Kf6 {[%clk
0:00:10.3]} 42. Ke3 {[%clk 0:00:32.2]} 42... Ke5 {[%clk 0:00:11.1]} 43. d4+
{[%clk 0:00:29.8]} 43... Kd6 {[%clk 0:00:11.3]} 44. Kf4 {[%clk 0:00:31.3]} 44...
Kxc6 {[%clk 0:00:11.8]} 45. Ke5 {[%clk 0:00:32.7]} 45... b5 {[%clk 0:00:10.5]}
46. axb5+ {[%clk 0:00:32.9]} 46... Kxb5 {[%clk 0:00:11.5]} 47. Kxd5 {[%clk
0:00:34.8]} 47... a4 {[%clk 0:00:12.6]} 48. c4+ {[%clk 0:00:36.3]} 48... Kb4
{[%clk 0:00:12.4]} 49. c5 {[%clk 0:00:35.9]} 49... a3 {[%clk 0:00:13.3]} 50. Kc6
{[%clk 0:00:37.3]} 50... a2 {[%clk 0:00:14.2]} 51. Kxc7 {[%clk 0:00:36.7]} 51...
Kc4 {[%clk 0:00:14.2]} 52. c6 {[%clk 0:00:36.6]} 52... Kxd4 {[%clk 0:00:14.7]}
53. Kd8 {[%clk 0:00:33.7]} 53... a1=Q {[%clk 0:00:16.6]} 54. c7 {[%clk
0:00:35.1]} 54... Qa5 {[%clk 0:00:14.3]} 55. Kd7 {[%clk 0:00:36.3]} 55... Qd5+
{[%clk 0:00:14.2]} 56. Ke8 {[%clk 0:00:36.7]} 56... Qc6+ {[%clk 0:00:14.4]} 57.
Kxf7 {[%clk 0:00:35.5]} 57... Qxc7+ {[%clk 0:00:15.1]} 58. Kxg6 {[%clk
0:00:36.5]} 58... Ke4 {[%clk 0:00:14.1]} 59. Kxh5 {[%clk 0:00:37.1]} 59... Qe5+
{[%clk 0:00:13.7]} 60. Kg4 {[%clk 0:00:37.9]} 60... Qf5# {[%clk 0:00:14.3]} 0-1